fUST/lending_fUST_20250904
["ID","MTS","AMOUNT","RATE_DAILY","PERIOD"]
[383453075,1756943455183,-850.0,0.00014534,2]
[383453077,1756943455193,-850.0,0.00014538,2]
[383453079,1756943455203,-203.14232213,0.00014545,2]
[383453081,1756943455212,-850.0,0.00014563,2]
[383453083,1756943455222,-186.97269579,0.00014582,2]
[383453085,1756943455232,-480.0,0.00014582,2]
[383453087,1756943455241,-401.75,0.00014582,2]
[383453089,1756943455250,-480.0,0.00014582,2]
[383453091,1756943455260,-480.0,0.00014582,2]
[383453093,1756943455270,-480.0,0.00014582,2]
[383453095,1756943455279,-480.0,0.00014582,2]
[383453097,1756943455289,-480.0,0.00014582,2]
[383453099,1756943455299,-480.0,0.00014582,2]
[383453101,1756943455309,-480.0,0.00014582,2]
[383453103,1756943455318,-480.0,0.00014582,2]
[383453105,1756943455328,-480.0,0.00014582,2]
[383453107,1756943455338,-541.1,0.00014582,2]
[383453109,1756943455347,-480.0,0.00014582,2]
[383453111,1756943455357,-480.0,0.00014582,2]
[383453113,1756943455367,-480.89,0.00014582,2]
[383453115,1756943455378,-480.0,0.00014582,2]
[383453117,1756943455388,-480.0,0.00014582,2]
[383453119,1756943455397,-480.0,0.00014582,2]
[383453121,1756943455407,-480.0,0.00014582,2]
[383453123,1756943455417,-480.0,0.00014582,2]
[383453125,1756943455426,-480.0,0.00014582,2]
[383453127,1756943455437,-480.0,0.00014582,2]
[383453129,1756943455446,-542.22,0.00014582,2]
[383453131,1756943455456,-480.0,0.00014582,2]
[383453133,1756943455465,-480.0,0.00014582,2]
[383453135,1756943455476,-480.0,0.00014582,2]
[383453137,1756943455485,-480.0,0.00014582,2]
[383453139,1756943455495,-460.38,0.00014582,2]
[383453141,1756943455505,-468.35,0.00014582,2]
[383453143,1756943455515,-480.0,0.00014582,2]
[383453145,1756943455524,-480.0,0.00014582,2]
[383453147,1756943455534,-480.0,0.00014582,2]
[383453149,1756943455543,-480.0,0.00014582,2]
[383453151,1756943455554,-480.0,0.00014582,2]
[383453153,1756943455564,-222.0,0.00014593,2]
[383453155,1756943455574,-222.0,0.00014593,2]
[383453157,1756943455585,-222.0,0.00014593,2]
[383453158,1756943455594,-222.0,0.00014593,2]
[383453159,1756943455604,-188.0,0.00014631,2]
[383453160,1756943455612,-306.0,0.00014658,2]
[383453161,1756943455622,-152.2016551,0.00014658,2]
[383453162,1756943455631,-850.0,0.00014676,2]
[383453163,1756943455640,-151.0,0.000147,2]
[383453164,1756943455649,-151.0,0.000147,2]
[383453165,1756943455658,-850.0,0.00014729,2]
[383453166,1756943455667,-850.0,0.00014735,2]
[383453168,1756943455677,-317.7571473,0.0001474,2]
[383453171,1756943455687,-314.8574316,0.0001474,2]
[383453173,1756943455697,-583.2030344,0.0001474,2]
[383453175,1756943455708,-153.0,0.0001474,2]
[383453177,1756943455717,-153.0,0.0001474,2]
[383453179,1756943455727,-153.0,0.0001474,2]
[383453181,1756943455737,-850.0,0.00014753,2]
[383453183,1756943455746,-296.28147605,0.0001476,2]
[383453185,1756943455756,-850.0,0.00014764,2]
[383453187,1756943455766,-850.0,0.00014768,2]
[383453189,1756943455775,-850.0,0.00014776,2]
[383453191,1756943455785,-500.0,0.00014781,2]
[383453193,1756943455795,-500.0,0.00014781,2]
[383453195,1756943455804,-183.64885996,0.00014794,2]
[383453197,1756943455814,-500.0,0.00014794,2]
[383453199,1756943455824,-480.0,0.00014794,2]
[383453201,1756943455833,-480.0,0.00014794,2]
[383453203,1756943455842,-480.0,0.00014794,2]
[383453205,1756943455852,-353.9501709,0.00014794,2]
[383453207,1756943455862,-480.0,0.00014794,2]
[383453209,1756943455871,-480.0,0.00014794,2]
[383453211,1756943455880,-480.0,0.00014794,2]
[383453213,1756943455890,-387.78,0.00014794,2]
[383453215,1756943455900,-480.0,0.00014794,2]
[383453217,1756943455910,-3244.94,0.00014794,2]
[383453219,1756943455919,-480.0,0.00014794,2]
[383453221,1756943455929,-480.0,0.00014794,2]
[383453223,1756943455939,-480.0,0.00014794,2]
[383453225,1756943455948,-305.12,0.00014794,2]
[383453227,1756943455960,-480.0,0.00014794,2]
[383453229,1756943455970,-480.0,0.00014794,2]
[383453231,1756943455979,-480.0,0.00014794,2]
[383453233,1756943455989,-707.43,0.00014794,2]
[383453235,1756943455998,-1729.33,0.00014794,2]
[383453237,1756943456011,-372.72,0.00014794,2]
[383453239,1756943456021,-1775.68,0.00014794,2]
[383453241,1756943456031,-480.0,0.00014794,2]
[383453243,1756943456041,-1217.55,0.00014794,2]
[383453245,1756943456051,-1218.09,0.00014794,2]
[383453247,1756943456060,-480.0,0.00014794,2]
[383453249,1756943456070,-480.0,0.00014794,2]
[383453251,1756943456079,-480.0,0.00014794,2]
[383453252,1756943456093,-433.04,0.00014794,2]
[383453255,1756943456104,-480.0,0.00014794,2]
[383453257,1756943456114,-480.0,0.00014794,2]
[383453259,1756943456124,-480.0,0.00014794,2]
[383453261,1756943456134,-1449.86,0.00014794,2]
[383453263,1756943456143,-480.0,0.00014794,2]
[383453265,1756943456153,-596.87,0.00014794,2]
[383453267,1756943456163,-512.4,0.00014794,2]
[383453269,1756943456173,-480.0,0.00014794,2]
[383453271,1756943456184,-847.23,0.00014794,2]
[383453273,1756943456194,-480.0,0.00014794,2]
[383453275,1756943456204,-1046.64,0.00014794,2]
[383453277,1756943456214,-480.0,0.00014794,2]
[383453279,1756943456223,-342.92,0.00014794,2]
[383453281,1756943456234,-480.0,0.00014794,2]
[383453283,1756943456244,-504.42100252,0.00014794,2]
[383453285,1756943456253,-776.63,0.00014794,2]
[383453287,1756943456264,-480.0,0.00014794,2]
[383453289,1756943456275,-2417.2,0.00014794,2]
[383453291,1756943456285,-480.0,0.00014794,2]
[383453293,1756943456295,-540.02933883,0.00014794,2]
[383453296,1756943456304,-480.0,0.00014794,2]
[383453298,1756943456314,-480.0,0.00014794,2]
[383453300,1756943456324,-480.0,0.00014794,2]
[383453302,1756943456335,-783.13,0.00014794,2]
[383453304,1756943456345,-480.0,0.00014794,2]
[383453306,1756943456354,-1250.02,0.00014794,2]
[383453308,1756943456364,-480.0,0.00014794,2]
[383453310,1756943456374,-4000.0,0.00014799,2]
[383453312,1756943456384,-151.0,0.000148,2]
[383453314,1756943456394,-151.0,0.000148,2]
[383453316,1756943456403,-850.0,0.00014814,2]
[383453318,1756943456413,-420.0,0.00014831,2]
[383453320,1756943456423,-1148.0,0.00014842,2]
[383453322,1756943456434,-480.0,0.00014856,2]
[383453324,1756943456443,-480.0,0.00014856,2]
[383453326,1756943456453,-480.0,0.00014856,2]
[383453328,1756943456463,-480.0,0.00014856,2]
[383453330,1756943456472,-480.0,0.00014856,2]
[383453332,1756943456482,-480.0,0.00014856,2]
[383453334,1756943456491,-480.0,0.00014856,2]
[383453336,1756943456501,-480.0,0.00014856,2]
[383453338,1756943456510,-480.0,0.00014856,2]
[383453340,1756943456519,-480.0,0.00014856,2]
[383453342,1756943456529,-541.1,0.00014856,2]
[383453344,1756943456539,-480.0,0.00014856,2]
[383453346,1756943456548,-480.0,0.00014856,2]
[383453348,1756943456559,-480.0,0.00014856,2]
[383453350,1756943456568,-480.0,0.00014856,2]
[383453352,1756943456578,-480.0,0.00014856,2]
[383453355,1756943456588,-480.0,0.00014856,2]
[383453357,1756943456597,-480.0,0.00014856,2]
[383453359,1756943456607,-480.0,0.00014856,2]
[383453361,1756943456616,-480.0,0.00014856,2]
[383453363,1756943456626,-542.22,0.00014856,2]
[383453365,1756943456637,-480.0,0.00014856,2]
[383453367,1756943456647,-480.0,0.00014856,2]
[383453369,1756943456656,-480.0,0.00014856,2]
[383453371,1756943456666,-617.79110374,0.00014856,2]
[383453373,1756943456675,-480.0,0.00014856,2]
[383453375,1756943456685,-470.53845274,0.00014856,2]
[383453377,1756943456694,-480.0,0.00014856,2]
[383453379,1756943456704,-480.0,0.00014856,2]
[383453381,1756943456714,-480.0,0.00014856,2]
[383453383,1756943456724,-850.0,0.0001488,2]
[383453385,1756943456734,-616.0,0.00014884,2]
[383453387,1756943456744,-850.0,0.00014891,2]
[383453389,1756943456754,-151.0,0.000149,2]
[383453391,1756943456764,-174.44444436,0.000149,2]
[383453393,1756943456774,-188.0,0.00014924,2]
[383453395,1756943456784,-850.0,0.00014926,2]
[383453397,1756943456794,-850.0,0.00014943,2]
[383453399,1756943456804,-850.0,0.00014957,2]
[383453401,1756943456813,-188.0,0.0001498,2]
[383453403,1756943456823,-500.0,0.00014995,2]
[383453405,1756943456832,-500.0,0.00014995,2]
[383453407,1756943456842,-500.0,0.00014996,2]
[383453409,1756943456851,-151.0,0.00015,2]
[383453411,1756943456860,-151.0,0.00015,2]
[383453413,1756943456870,-151.0,0.00015,2]
[383453415,1756943456879,-500.0,0.00015068,2]
[383453417,1756943456889,-480.0,0.00015068,2]
[383453419,1756943456899,-480.0,0.00015068,2]
[383453421,1756943456909,-252.96,0.00015068,2]
[383453423,1756943456919,-480.0,0.00015068,2]
[383453425,1756943456928,-219.06,0.00015068,2]
[383453427,1756943456938,-480.0,0.00015068,2]
[383453430,1756943456947,-3244.94,0.00015068,2]
[383453432,1756943456955,-480.0,0.00015068,2]
[383453434,1756943456963,-480.0,0.00015068,2]
[383453436,1756943456972,-480.0,0.00015068,2]
[383453438,1756943456982,-480.0,0.00015068,2]
[383453440,1756943456991,-480.0,0.00015068,2]
[383453442,1756943457001,-707.43,0.00015068,2]
[383453444,1756943457011,-1729.33,0.00015068,2]
[383453446,1756943457019,-1775.68,0.00015068,2]
[383453448,1756943457029,-480.0,0.00015068,2]
[383453450,1756943457039,-1217.55,0.00015068,2]
[383453452,1756943457048,-1218.09,0.00015068,2]
[383453454,1756943457058,-480.0,0.00015068,2]
[383453456,1756943457067,-480.0,0.00015068,2]
[383453458,1756943457077,-480.0,0.00015068,2]
[383453460,1756943457087,-480.0,0.00015068,2]
[383453462,1756943457096,-480.0,0.00015068,2]
[383453464,1756943457105,-480.0,0.00015068,2]
[383453466,1756943457115,-1449.86,0.00015068,2]
[383453468,1756943457124,-480.0,0.00015068,2]
[383453470,1756943457133,-596.87,0.00015068,2]
[383453472,1756943457143,-512.4,0.00015068,2]
[383453474,1756943457152,-480.0,0.00015068,2]
[383453476,1756943457162,-847.23,0.00015068,2]
[383453478,1756943457171,-480.0,0.00015068,2]
[383453481,1756943457181,-1046.64,0.00015068,2]
[383453482,1756943457191,-480.0,0.00015068,2]
[383453484,1756943457200,-480.0,0.00015068,2]
[383453486,1756943457209,-776.63,0.00015068,2]
[383453489,1756943457219,-480.0,0.00015068,2]
[383453490,1756943457228,-2417.2,0.00015068,2]
[383453493,1756943457237,-276.17,0.00015068,2]
[383453495,1756943457246,-480.0,0.00015068,2]
[383453509,1756943457256,-480.0,0.00015068,2]
[383453511,1756943457378,-480.0,0.00015068,2]
[383453513,1756943457389,-783.13,0.00015068,2]
[383453515,1756943457400,-480.0,0.00015068,2]
[383453517,1756943457409,-378.62,0.00015068,2]
[383453520,1756943457419,-1250.02,0.00015068,2]
[383453522,1756943457429,-1500.0,0.00015068,2]
[383453524,1756943457439,-1500.0,0.00015068,2]
[383453526,1756943457449,-500.0,0.00015068,2]
[383453528,1756943457459,-1500.0,0.00015068,2]
[383453530,1756943457468,-1500.0,0.00015068,2]
[383453532,1756943457478,-1500.0,0.00015068,2]
[383453534,1756943457488,-1500.0,0.00015068,2]
[383453536,1756943457498,-1500.0,0.00015068,2]
[383453538,1756943457507,-1500.0,0.00015068,2]
[383453540,1756943457517,-1500.0,0.00015068,2]
[383453542,1756943457526,-151.0,0.000151,2]
[383453544,1756943457536,-500.25188748,0.00015124,2]
[383453546,1756943457545,-500.0,0.00015124,2]
[383453548,1756943457555,-500.0,0.00015124,2]
[383453550,1756943457564,-500.0,0.00015124,2]
[383453552,1756943457573,-480.0,0.0001513,2]
[383453554,1756943457583,-480.0,0.0001513,2]
[383453556,1756943457593,-480.0,0.0001513,2]
[383453558,1756943457603,-480.0,0.0001513,2]
[383453560,1756943457613,-480.0,0.0001513,2]
[383453562,1756943457623,-480.0,0.0001513,2]
[383453564,1756943457632,-207.94,0.0001513,2]
[383453566,1756943457642,-480.0,0.0001513,2]
[383453568,1756943457651,-480.0,0.0001513,2]
[383453570,1756943457661,-541.1,0.0001513,2]
[383453572,1756943457671,-480.0,0.0001513,2]
[383453574,1756943457680,-480.0,0.0001513,2]
[383453577,1756943457691,-480.0,0.0001513,2]
[383453579,1756943457701,-480.0,0.0001513,2]
[383453581,1756943457711,-619.38,0.0001513,2]
[383453583,1756943457721,-480.0,0.0001513,2]
[383453585,1756943457730,-480.0,0.0001513,2]
[383453587,1756943457740,-480.0,0.0001513,2]
[383453589,1756943457750,-480.0,0.0001513,2]
[383453591,1756943457759,-542.22,0.0001513,2]
[383453593,1756943457769,-480.0,0.0001513,2]
[383453595,1756943457779,-480.0,0.0001513,2]
[383453597,1756943457789,-480.0,0.0001513,2]
[383453599,1756943457798,-480.0,0.0001513,2]
[383453601,1756943457808,-480.0,0.0001513,2]
[383453603,1756943457817,-160.0,0.00015185,2]
[383453605,1756943457827,-465.37566969,0.00015202,2]
[383453609,1756943457849,-402.55326226,0.00015202,2]
[383453648,1756943458233,-480.0,0.00013698,2]
[383453650,1756943458243,-305.26254659,0.00013698,2]
[383453662,1756943458349,-174.73745341,0.00013698,2]
[383453664,1756943458359,-151.0,0.00013699,2]
[383453666,1756943458368,-151.0,0.00013972,2]
[383453668,1756943458377,-151.0,0.00013972,2]
[383453670,1756943458387,-593.29,0.0001452,2]
[383453672,1756943458397,-593.29,0.00014794,2]
[383453674,1756943458406,-593.29,0.00015068,2]
[383453677,1756943458415,-280.07106805,0.00015202,2]
[383453679,1756943458425,-500.0,0.0001525,2]
[383453680,1756943458434,-500.0,0.0001525,2]
[383453683,1756943458444,-839.42557033,0.00015329,2]
[383458712,1756943525485,1000.0,0.00018595,20]
[383458713,1756943526648,1000.0,0.00020455,20]
[383458714,1756943527191,244.0,0.00020455,20]
[383458715,1756943649673,211.81641011,2.98e-06,60]
[383458717,1756943984987,600.7,0.00027397,120]
[383458718,1756944008000,336.51,0.000144,5]
[383458803,1756944632185,-312.93358398,0.00013598,2]
[383458805,1756944632196,-1165.69260842,0.00013696,2]
[383459106,1756944635750,200.0,0.00027,120]
[383459255,1756944643822,-34.30739158,0.00013696,2]
[383459257,1756944643832,-300.0,0.00013696,2]
[383459259,1756944643841,-952.27610784,0.00013696,2]
[383459261,1756944643858,-247.72389216,0.00013696,2]
[383459263,1756944643868,-189.7854373,0.00013697,2]
[383459265,1756944643877,-584.7542369,0.00013697,2]
[383459267,1756944643887,-191.29281245,0.00013697,2]
[383459269,1756944643897,-500.0,0.00013697,2]
[383459271,1756944643906,-220.27824378,0.00013697,2]
[383459273,1756944643916,-264.35560488,0.00013697,2]
[383459275,1756944643928,-500.0,0.00013697,2]
[383459277,1756944643939,-500.0,0.00013697,2]
[383459280,1756944643948,-500.0,0.00013697,2]
[383459282,1756944643957,-500.0,0.00013697,2]
[383459284,1756944643966,-500.0,0.00013697,2]
[383459286,1756944643975,-500.0,0.00013697,2]
[383459288,1756944643984,-500.0,0.00013697,2]
[383459289,1756944643993,-480.0,0.00013698,2]
[383459292,1756944644003,-480.0,0.00013698,2]
[383459296,1756944644013,-480.0,0.00013698,2]
[383459298,1756944644022,-281.52570973,0.00013698,2]
[383459301,1756944644032,-220.96856204,0.00013698,2]
[383459303,1756944644041,-395.18077573,0.00013698,2]
[383459305,1756944644051,-480.0,0.00013698,2]
[383459307,1756944644061,-480.0,0.00013698,2]
[383459310,1756944644071,-542.34676921,0.00013698,2]
[383459311,1756944644080,-480.0,0.00013698,2]
[383459313,1756944644089,-480.0,0.00013698,2]
[383459315,1756944644099,-480.0,0.00013698,2]
[383459317,1756944644110,-480.0,0.00013698,2]
[383459319,1756944644119,-480.0,0.00013698,2]
[383459322,1756944644131,-422.15046608,0.00013698,2]
[383459324,1756944644139,-480.0,0.00013698,2]
[383459326,1756944644149,-480.0,0.00013698,2]
[383459328,1756944644157,-480.0,0.00013698,2]
[383459330,1756944644166,-480.0,0.00013698,2]
[383459332,1756944644175,-480.0,0.00013698,2]
[383459334,1756944644184,-482.54,0.00013698,2]
[383459336,1756944644193,-480.0,0.00013698,2]
[383459337,1756944644202,-480.0,0.00013698,2]
[383459340,1756944644211,-480.0,0.00013698,2]
[383459342,1756944644221,-433.28805066,0.00013698,2]
[383459344,1756944644230,-480.0,0.00013698,2]
[383459346,1756944644240,-480.0,0.00013698,2]
[383459347,1756944644249,-480.0,0.00013698,2]
[383459349,1756944644258,-480.0,0.00013698,2]
[383459351,1756944644268,-480.0,0.00013698,2]
[383459353,1756944644278,-480.80762895,0.00013698,2]
[383459355,1756944644288,-480.0,0.00013698,2]
[383459357,1756944644298,-480.0,0.00013698,2]
[383459359,1756944644307,-480.0,0.00013698,2]
[383459361,1756944644316,-480.0,0.00013698,2]
[383459364,1756944644327,-480.0,0.00013698,2]
[383459366,1756944644336,-500.89,0.00013698,2]
[383459368,1756944644346,-480.0,0.00013698,2]
[383459370,1756944644355,-480.0,0.00013698,2]
[383459372,1756944644364,-480.0,0.00013698,2]
[383459374,1756944644374,-480.0,0.00013698,2]
[383459376,1756944644383,-480.0,0.00013698,2]
[383459378,1756944644392,-611.26877476,0.00013698,2]
[383459380,1756944644402,-480.0,0.00013698,2]
[383459382,1756944644411,-480.0,0.00013698,2]
[383459384,1756944644420,-480.0,0.00013698,2]
[383459386,1756944644430,-480.0,0.00013698,2]
[383459388,1756944644440,-480.0,0.00013698,2]
[383459390,1756944644449,-480.0,0.00013698,2]
[383459392,1756944644459,-480.0,0.00013698,2]
[383459393,1756944644468,-605.79584525,0.00013698,2]
[383459396,1756944644478,-480.0,0.00013698,2]
[383459398,1756944644488,-480.0,0.00013698,2]
[383459400,1756944644497,-480.0,0.00013698,2]
[383459402,1756944644507,-480.0,0.00013698,2]
[383459404,1756944644516,-480.0,0.00013698,2]
[383459406,1756944644526,-480.0,0.00013698,2]
[383459408,1756944644536,-480.0,0.00013698,2]
[383459410,1756944644545,-480.0,0.00013698,2]
[383459412,1756944644554,-480.0,0.00013698,2]
[383459414,1756944644563,-480.0,0.00013698,2]
[383459416,1756944644572,-480.0,0.00013698,2]
[383459418,1756944644581,-530.45,0.00013698,2]
[383459420,1756944644590,-480.0,0.00013698,2]
[383459422,1756944644600,-480.0,0.00013698,2]
[383459424,1756944644610,-480.0,0.00013698,2]
[383459426,1756944644619,-480.0,0.00013698,2]
[383459427,1756944644629,-480.0,0.00013698,2]
[383459429,1756944644638,-480.0,0.00013698,2]
[383459431,1756944644649,-480.0,0.00013698,2]
[383459433,1756944644659,-481.13981514,0.00013698,2]
[383459436,1756944644669,-480.0,0.00013698,2]
[383459437,1756944644678,-480.0,0.00013698,2]
[383459440,1756944644693,-480.0,0.00013698,2]
[383459441,1756944644702,-480.0,0.00013698,2]
[383459443,1756944644712,-480.0,0.00013698,2]
[383459445,1756944644721,-480.0,0.00013698,2]
[383459447,1756944644735,-480.0,0.00013698,2]
[383459450,1756944644744,-480.0,0.00013698,2]
[383459452,1756944644754,-153.41,0.00013698,2]
[383459453,1756944644764,-480.0,0.00013698,2]
[383459456,1756944644774,-480.0,0.00013698,2]
[383459457,1756944644783,-346.34804989,0.00013698,2]
[383459459,1756944644793,-480.0,0.00013698,2]
[383459461,1756944644802,-480.0,0.00013698,2]
[383459464,1756944644812,-480.0,0.00013698,2]
[383459465,1756944644821,-480.0,0.00013698,2]
[383459467,1756944644831,-480.0,0.00013698,2]
[383459469,1756944644848,-480.0,0.00013698,2]
[383459471,1756944644864,-480.0,0.00013698,2]
[383459473,1756944644874,-480.0,0.00013698,2]
[383459475,1756944644888,-480.0,0.00013698,2]
[383459477,1756944644898,-480.0,0.00013698,2]
[383459479,1756944644907,-480.0,0.00013698,2]
[383459481,1756944644916,-480.0,0.00013698,2]
[383459483,1756944644926,-480.0,0.00013698,2]
[383459485,1756944644935,-480.0,0.00013698,2]
[383459487,1756944644945,-480.0,0.00013698,2]
[383459489,1756944644954,-480.0,0.00013698,2]
[383459491,1756944644964,-480.0,0.00013698,2]
[383459493,1756944644976,-480.0,0.00013698,2]
[383459495,1756944644986,-480.0,0.00013698,2]
[383459497,1756944644995,-480.0,0.00013698,2]
[383459499,1756944645005,-480.0,0.00013698,2]
[383459501,1756944645015,-480.0,0.00013698,2]
[383459503,1756944645024,-480.0,0.00013698,2]
[383459505,1756944645034,-480.0,0.00013698,2]
[383459507,1756944645043,-480.0,0.00013698,2]
[383459509,1756944645052,-480.0,0.00013698,2]
[383459510,1756944645061,-480.0,0.00013698,2]
[383459511,1756944645070,-480.0,0.00013698,2]
[383459512,1756944645079,-254.84624933,0.00013698,2]
[383459513,1756944645089,-423.21170726,0.00013698,2]
[383459514,1756944645097,-480.0,0.00013698,2]
[383459515,1756944645106,-481.48598051,0.00013698,2]
[383459516,1756944645115,-480.0,0.00013698,2]
[383459517,1756944645124,-480.0,0.00013698,2]
[383459518,1756944645133,-480.0,0.00013698,2]
[383459519,1756944645142,-480.0,0.00013698,2]
[383459520,1756944645151,-480.0,0.00013698,2]
[383459521,1756944645161,-485.5,0.00013698,2]
[383459522,1756944645170,-480.0,0.00013698,2]
[383459523,1756944645179,-480.0,0.00013698,2]
[383459524,1756944645188,-480.0,0.00013698,2]
[383459525,1756944645197,-480.0,0.00013698,2]
[383459526,1756944645206,-480.0,0.00013698,2]
[383459527,1756944645215,-480.0,0.00013698,2]
[383459528,1756944645224,-480.0,0.00013698,2]
[383459529,1756944645233,-480.0,0.00013698,2]
[383459530,1756944645242,-480.0,0.00013698,2]
[383459531,1756944645251,-480.0,0.00013698,2]
[383459532,1756944645260,-480.0,0.00013698,2]
[383459533,1756944645269,-480.0,0.00013698,2]
[383459534,1756944645279,-218.02440338,0.00013698,2]
[383459535,1756944645288,-266.65854395,0.00013698,2]
[383459536,1756944645297,-480.0,0.00013698,2]
[383459538,1756944645307,-480.0,0.00013698,2]
[383459540,1756944645317,-611.82462032,0.00013698,2]
[383459542,1756944645327,-480.0,0.00013698,2]
[383459544,1756944645337,-483.65213712,0.00013698,2]
[383459546,1756944645347,-480.0,0.00013698,2]
[383459548,1756944645356,-480.0,0.00013698,2]
[383459550,1756944645366,-480.0,0.00013698,2]
[383459552,1756944645376,-480.0,0.00013698,2]
[383459554,1756944645385,-480.0,0.00013698,2]
[383459556,1756944645395,-480.0,0.00013698,2]
[383459558,1756944645404,-480.0,0.00013698,2]
[383459560,1756944645413,-480.0,0.00013698,2]
[383459562,1756944645424,-480.0,0.00013698,2]
[383459564,1756944645433,-480.0,0.00013698,2]
[383459566,1756944645443,-480.0,0.00013698,2]
[383459568,1756944645453,-480.0,0.00013698,2]
[383459570,1756944645463,-480.0,0.00013698,2]
[383459572,1756944645472,-480.0,0.00013698,2]
[383459574,1756944645482,-480.0,0.00013698,2]
[383459589,1756944645492,-584.38,0.00013698,2]
[383459591,1756944645623,-480.0,0.00013698,2]
[383459593,1756944645633,-482.73678879,0.00013698,2]
[383459595,1756944645643,-480.0,0.00013698,2]
[383459597,1756944645652,-480.0,0.00013698,2]
[383459599,1756944645662,-480.0,0.00013698,2]
[383459601,1756944645672,-480.0,0.00013698,2]
[383459603,1756944645682,-480.0,0.00013698,2]
[383459606,1756944645691,-480.0,0.00013698,2]
[383459608,1756944645700,-277.35,0.00013698,2]
[383459610,1756944645710,-480.0,0.00013698,2]
[383459612,1756944645719,-480.0,0.00013698,2]
[383459614,1756944645730,-560.05,0.00013698,2]
[383459616,1756944645739,-480.0,0.00013698,2]
[383459618,1756944645749,-480.0,0.00013698,2]
[383459620,1756944645759,-1405.74,0.00013698,2]
[383459622,1756944645769,-480.0,0.00013698,2]
[383459624,1756944645779,-480.0,0.00013698,2]
[383459627,1756944645789,-480.0,0.00013698,2]
[383459629,1756944645800,-480.0,0.00013698,2]
[383459630,1756944645810,-964.32,0.00013698,2]
[383459632,1756944645819,-480.0,0.00013698,2]
[383459635,1756944645829,-517.83032813,0.00013698,2]
[383459637,1756944645843,-480.0,0.00013698,2]
[383459639,1756944645858,-1147.81,0.00013698,2]
[383459641,1756944645867,-480.0,0.00013698,2]
[383459643,1756944645876,-480.0,0.00013698,2]
[383459644,1756944645886,-480.0,0.00013698,2]
[383459647,1756944645897,-480.0,0.00013698,2]
[383459649,1756944645906,-480.0,0.00013698,2]
[383459651,1756944645916,-480.0,0.00013698,2]
[383459652,1756944645926,-480.0,0.00013698,2]
[383459654,1756944645935,-480.0,0.00013698,2]
[383459656,1756944645945,-480.0,0.00013698,2]
[383459658,1756944645954,-480.0,0.00013698,2]
[383459660,1756944645963,-480.0,0.00013698,2]
[383459662,1756944645973,-480.0,0.00013698,2]
[383459664,1756944645983,-480.0,0.00013698,2]
[383459666,1756944645993,-480.0,0.00013698,2]
[383459668,1756944646002,-480.0,0.00013698,2]
[383459670,1756944646012,-670.73,0.00013698,2]
[383459672,1756944646022,-480.0,0.00013698,2]
[383459674,1756944646032,-480.0,0.00013698,2]
[383459676,1756944646042,-480.0,0.00013698,2]